bitfinex/quotes_ETHUSD_20220105
["timestamp","ask_amount","ask_price","bid_price","bid_amount"]
[1641406886624,0.00795793,3733.6,3733.1,10.07632561]
[1641406886823,0.00795793,3733.6,3733.1,10.07322604]
[1641406887021,0.51445608,3733.7,3733.3,0.03926574]
[1641406887022,0.00738951,3733.5,3733.3,0.03926574]
[1641406887221,0.00738951,3733.5,3733.4,8.07321903]
[1641406887422,0.51445608,3733.7,3733.4,8.07321903]
[1641406887622,3.03698175,3733.6,3733.5,0.43776507]
[1641406887822,3.04493968,3733.6,3733.5,8.47546507]
[1641406888524,0.00795793,3733.6,3733.5,8.47546507]
[1641406888725,0.00795793,3733.6,3733.5,8.07373877]
[1641406889227,0.00795793,3733.6,3733.5,8.0377]
[1641406889822,0.00795793,3733.6,3733.5,8.07609794]
[1641406890468,3.04493968,3733.6,3733.5,8.37609794]
[1641406890868,0.00795793,3733.6,3733.5,9.91979724]
[1641406891472,5.793e-05,3733.6,3733.5,13.40167616]
[1641406891679,4.99448444,3735.1,3734.3,0.267692]
[1641406891680,1.58380638,3735.1,3734.3,0.267692]
[1641406891875,2.98210733,3735.6,3734.7,0.01285306]
[1641406892074,2.98210733,3735.6,3734.9,0.56622588]
[1641406892273,2.98210733,3735.6,3735.0,8.07226591]
[1641406892472,2.98210733,3735.6,3735.5,0.86198086]
[1641406892674,2.98210733,3735.6,3735.5,8.89678086]
[1641406892874,3.81257969,3736.2,3735.6,7.33712183]
[1641406893075,3.81257969,3736.2,3735.7,8.06999893]
[1641406893272,3.78747969,3736.2,3735.9,0.70114514]
[1641406893471,0.6801392,3737.0,3736.0,8.06578634]
[1641406893674,0.6801392,3737.0,3736.6,0.99650024]
[1641406894131,0.6801392,3737.0,3736.6,1.29650024]
[1641406894940,6.94,3737.8,3736.6,2.49110024]
[1641406894941,5.4899,3736.9,3736.6,2.49110024]
[1641406895145,6.94,3737.8,3736.7,8.3521]
[1641406895340,0.01136847,3737.6,3737.0,0.5349144]
[1641406895539,0.01136847,3737.6,3737.3,1.36976837]
[1641406895741,3.9946,3739.8,3737.4,0.319]
[1641406895742,0.01080005,3737.5,3737.4,0.319]
[1641406895938,5e-08,3737.5,3737.4,0.67082954]
[1641406896140,0.01080005,3737.5,3737.4,2.33943954]
[1641406896342,5e-08,3737.8,3737.4,11.37153954]
[1641406896540,5e-08,3737.8,3737.5,3.04857194]
[1641406896742,0.01333475,3740.7,3738.3,0.01218234]
[1641406896743,0.00170531,3739.7,3738.3,0.01218234]
[1641406896941,0.00170531,3739.7,3738.9,1.368738]
[1641406897142,0.00113689,3739.6,3739.0,9.88873678]
[1641406897340,0.00113689,3739.6,3739.0,10.92820891]
[1641406897541,0.00682112,3740.6,3739.5,0.6683]
[1641406897776,0.00682112,3740.6,3739.6,8.348]
[1641406897983,0.23358745,3741.3,3740.0,2.0]
[1641406898178,0.23358745,3741.3,3740.1,8.3473]
[1641406898377,0.01210499,3742.6,3740.1,8.3473]
[1641406898378,0.00397897,3741.2,3740.2,1.63000995]
[1641406898579,2.49398391,3742.6,3740.2,1.63000995]
[1641406898580,2.48187892,3742.6,3741.5,0.79006756]
[1641406898779,0.99451072,3742.8,3741.8,0.84339795]
[1641406898979,0.00397896,3741.9,3741.8,0.88081204]
[1641406899179,0.00397896,3741.9,3741.8,12.57581204]
[1641406899380,3.8068,3742.9,3741.9,7.3]
[1641406899580,0.67670551,3742.4,3742.1,7.89528838]
[1641406899782,0.0008,3743.0,3742.2,13.9634]
[1641406900080,0.0008,3743.0,3742.4,1.07159749]
[1641406900284,0.7499,3743.6,3742.5,13.69932886]
[1641406900484,0.01283922,3745.2,3743.0,1.33518]
[1641406900682,0.2328,3745.4,3743.0,1.33518]
[1641406900683,0.2328,3745.4,3744.3,0.66741]
[1641406900882,7.17360976,3746.0,3744.3,0.66741]
[1641406900883,0.01203142,3746.7,3744.9,2.49]
[1641406901083,6.88103142,3747.7,3745.0,16.15207892]
[1641406901282,1.71203142,3747.7,3747.6,1e-08]
[1641406901537,1.71203142,3747.7,3747.6,5.3367]
[1641406901740,3.35841721,3747.6,3747.5,0.2718]
[1641406901940,3.30841721,3747.6,3747.5,0.2718]
[1641406902135,3.30841721,3747.6,3747.5,0.1218]
[1641406902136,3.32149095,3747.6,3747.5,0.1218]
[1641406902739,3.32149095,3747.6,3746.7,0.217]
[1641406902944,3.15739744,3748.1,3746.7,0.217]
[1641406902945,0.62545331,3747.3,3746.9,0.49207231]
[1641406903141,0.01250531,3747.5,3746.9,0.319]
[1641406903341,0.106868,3748.6,3747.0,0.00341054]
[1641406903541,0.106868,3748.6,3747.0,0.01591585]
[1641406903841,0.319,3750.4,3747.7,0.87611283]
[1641406903842,0.93086307,3749.2,3747.7,0.87611283]
[1641406904142,0.93086307,3749.2,3747.8,0.01136847]
[1641406904341,0.93086307,3749.2,3747.8,0.14956844]
[1641406904541,0.93086307,3749.2,3747.8,1.47188997]
[1641406904741,3.7597,3750.9,3748.0,7.25]
[1641406904949,3.7597,3750.9,3748.3,1.33334]
[1641406905177,0.00568424,3750.8,3749.7,0.60649959]
[1641406905372,0.51556905,3750.1,3749.1,0.66666]
[1641406905570,0.51556905,3750.1,3749.1,0.96666]
[1641406905771,0.00113685,3750.0,3749.2,0.00341054]
[1641406905972,8.2245202,3751.1,3749.3,7.3]
[1641406905973,3.0555202,3751.1,3749.3,7.3]
[1641406906170,3.0555202,3751.1,3749.4,3.33185011]
[1641406906375,0.00568423,3751.0,3749.9,0.66649]
[1641406906577,0.00172739,3750.1,3750.0,2.80087892]
[1641406906776,3.05445921,3751.1,3750.2,6.5]
[1641406906977,3.62472193,3751.1,3750.6,0.60533026]
[1641406907275,1.6615678,3751.1,3750.9,0.75470004]
[1641406907478,1.6615678,3751.1,3750.9,1.05470004]
[1641406907675,1.6615678,3751.1,3750.9,0.3]
[1641406907876,1.6615678,3751.1,3750.7,0.00170527]
[1641406908277,1.6615678,3751.1,3750.6,0.00227369]
[1641406908477,0.65139161,3751.0,3750.4,0.00341054]
[1641406908679,0.93044751,3750.9,3749.9,0.00625265]
[1641406908922,0.3,3750.9,3750.0,1.32316275]
[1641406909322,0.53044081,3751.1,3750.1,0.00511581]
[1641406909523,0.65987988,3750.9,3748.9,2.48187892]
[1641406909723,0.65987988,3750.9,3748.2,1.32215119]
[1641406909724,0.00220101,3749.4,3748.3,2.0]
[1641406910026,1.65987988,3750.9,3748.3,2.0]
[1641406910027,0.319,3750.7,3749.0,0.00625265]
[1641406910425,0.00284212,3750.6,3749.0,0.00625265]
[1641406910825,0.0022737,3750.5,3749.0,0.00625265]
[1641406911022,0.0022737,3750.5,3748.9,0.00682108]
[1641406911222,0.00170527,3750.4,3748.9,0.00682108]
[1641406911629,1.0,3750.9,3748.9,0.00682108]
[1641406911630,0.00113685,3750.3,3748.9,0.00682108]
[1641406912030,0.00397897,3750.8,3749.0,5.36617666]
[1641406912532,0.98559939,3750.5,3749.4,0.92825875]
[1641406912769,0.98559939,3750.5,3749.1,0.04322351]
[1641406912770,1.28559939,3750.5,3749.1,0.04322351]
[1641406912970,0.00170527,3750.4,3749.5,0.00341054]
[1641406913171,0.00170527,3750.4,3749.0,8.65828169]
[1641406913172,0.00170527,3750.4,3749.2,0.00511581]
[1641406913371,1.28559939,3750.5,3749.1,0.00568423]
[1641406913372,0.00113685,3750.3,3749.1,0.00568423]
[1641406913771,1.28559939,3750.5,3749.1,0.00568423]
[1641406913772,0.00170527,3750.4,3749.1,0.00568423]
[1641406913977,7.25,3749.3,3747.9,0.01298185]
[1641406914180,7.25,3749.3,3747.4,0.13819997]
[1641406914181,1.0,3749.7,3747.6,2.68545517]
[1641406914382,1.00682108,3750.3,3749.2,3.02445185]
[1641406914582,2.95152782,3751.7,3749.2,3.06119352]
[1641406914583,0.00284212,3749.6,3749.2,3.06119352]
[1641406914879,0.00625266,3750.2,3749.3,0.81280977]
[1641406915082,2.50702992,3751.0,3749.3,0.81280977]
[1641406915083,0.00227369,3749.5,3749.3,0.81280977]
[1641406915278,0.59962772,3750.3,3749.7,0.5970208]
[1641406915478,0.00341054,3750.1,3749.4,0.03424307]
[1641406915680,0.00341054,3750.1,3749.9,0.90231283]
[1641406915878,0.00284212,3750.0,3749.9,0.93416921]
[1641406916080,0.00284212,3750.0,3749.9,1.23416921]
[1641406917658,0.00284212,3750.0,3749.9,1.75249265]
[1641406917855,2.50702992,3752.0,3750.0,7.28915879]
[1641406918254,0.00117549,3750.1,3750.0,7.28915879]
[1641406918656,7.549e-05,3750.1,3750.0,7.28915879]
[1641406918857,7.549e-05,3750.1,3750.0,7.60815879]
[1641406919461,0.00023521,3751.0,3750.0,24.13256476]
[1641406919658,0.00023521,3751.0,3750.7,1.03101154]
[1641406919862,0.00023521,3751.0,3750.8,8.3173]
[1641406920062,0.52705352,3751.1,3750.9,7.28519472]
[1641406920278,0.64447831,3752.6,3752.1,0.66373318]
[1641406920474,2.3474,3751.1,3751.0,15.28272007]
[1641406920674,2.3474,3751.1,3751.0,8.03272007]
[1641406920873,2.3474,3751.1,3751.0,7.9979]
[1641406921171,2.3474,3751.1,3751.0,8.0303568]
[1641406921577,2.3474,3751.1,3751.0,11.05385953]
[1641406921777,2.3474,3751.1,3751.0,16.38565953]
[1641406921977,2.3474,3751.1,3751.0,16.68565953]
[1641406922376,2.2974,3751.1,3751.0,16.68565953]
[1641406922783,2.2474,3751.1,3751.0,16.68565953]
[1641406923577,2.2474,3751.1,3751.0,17.68565953]
[1641406923778,2.2474,3751.1,3751.0,16.68565953]
[1641406924018,2.2474,3751.1,3751.0,13.41555953]
[1641406924227,2.4474,3751.1,3751.0,13.22465953]
[1641406924521,2.4474,3751.1,3751.0,9.22875953]
[1641406924723,9.7474,3751.1,3751.0,13.13197065]
[1641406924924,12.49162999,3751.1,3751.0,1.76397065]
[1641406925121,7.3,3751.0,3750.8,4.53591358]
[1641406925325,3.3213756,3751.1,3750.8,4.56962527]
[1641406925523,3.3213756,3751.1,3750.8,2.76052317]
[1641406925524,2.4664,3751.1,3750.8,2.76052317]
[1641406925723,2.1474,3751.1,3750.8,2.76052317]
[1641406925924,2.4474,3751.1,3750.8,2.72237147]
[1641406926325,2.4474,3751.1,3750.8,2.7564727]
[1641406926525,2.4474,3751.1,3750.8,3.38708409]
[1641406926526,2.1474,3751.1,3750.8,3.38708409]
[1641406926726,2.1474,3751.1,3750.9,2.72146984]
[1641406926925,2.1474,3751.1,3750.9,2.75188496]
[1641406927126,2.1474,3751.1,3750.9,3.02146984]
[1641406927974,2.1474,3751.1,3750.9,3.92862645]
[1641406927975,2.4474,3751.1,3750.9,3.92862645]
[1641406928173,2.1474,3751.1,3750.9,3.92862645]
[1641406928371,2.4474,3751.1,3750.9,3.62862645]
[1641406928571,2.1474,3751.1,3750.9,3.62862645]
[1641406928975,2.1474,3751.1,3750.9,3.52862645]
[1641406929374,0.00181612,3751.0,3750.9,3.52862645]
[1641406929778,0.00181612,3751.0,3750.8,0.00090163]
[1641406930178,0.00181612,3751.0,3750.7,0.00170527]
[1641406930386,1.0,3751.6,3751.2,0.57888121]
[1641406930583,0.319,3751.6,3751.2,0.57888121]
[1641406930780,0.00284212,3751.5,3751.2,0.57888121]
[1641406931181,1.85091307,3751.4,3751.2,0.57888121]
[1641406931436,0.319,3751.3,3750.5,0.00284211]
[1641406931634,0.32070527,3751.3,3750.5,0.00284211]
[1641406931829,0.00113685,3751.2,3749.7,0.0073895]
[1641406932030,0.98582,3751.1,3749.7,0.0073895]
[1641406932530,0.57501402,3749.9,3749.7,0.0073895]
[1641406932931,0.57501402,3749.9,3749.6,0.00795792]
[1641406933133,0.57501402,3749.9,3748.9,0.01193689]
[1641406933331,0.57501402,3749.9,3748.8,0.01250531]
[1641406933531,4.9107424,3748.9,3748.8,0.01250531]
[1641406933931,0.66697,3749.8,3748.8,0.01250531]
[1641406934131,0.319,3750.2,3748.4,0.01477901]
[1641406934333,0.319,3750.2,3748.0,0.06431421]
[1641406934531,0.319,3750.2,3747.8,0.01296496]
[1641406934532,2.46387456,3750.1,3747.9,0.01762112]
[1641406934733,2.46387456,3750.1,3748.1,0.01648428]
[1641406934931,0.6592498,3748.6,3747.9,0.5428805]
[1641406935178,0.6592498,3748.6,3747.6,3.79149051]
[1641406935179,0.6592498,3748.6,3748.1,0.01648428]
[1641406935379,0.9782498,3748.6,3748.0,0.0170527]
[1641406935577,0.9782498,3748.6,3745.6,2.488]
[1641406935578,0.9782498,3748.6,3747.8,0.01818955]
[1641406935978,7.3,3748.5,3746.3,2.50692533]
[1641406936178,3.69225421,3748.4,3747.2,0.00341054]
[1641406936379,4.69566475,3748.4,3747.2,0.00341054]
[1641406936580,0.00284212,3748.3,3746.7,0.00625265]
[1641406936781,0.67006772,3748.3,3746.7,0.00625265]
[1641406936982,0.0022737,3748.2,3746.7,0.00625265]
[1641406937180,0.0022737,3748.2,3746.8,0.53353359]
[1641406937184,0.68196778,3747.5,3746.8,0.53353359]
[1641406937381,0.00170527,3748.1,3747.8,4.53578307]
[1641406937784,2.46387456,3748.7,3747.8,4.53578307]
[1641406937785,0.00113685,3748.0,3747.8,4.53578307]
[1641406938183,0.319,3748.5,3747.6,4.53578307]
[1641406938587,0.68200542,3748.3,3748.1,1.00179482]
[1641406938784,0.68200542,3748.3,3747.6,5.17969567]
[1641406939022,0.0022737,3748.2,3747.6,4.53578307]
[1641406939521,0.0008,3748.6,3748.1,3.63107298]
[1641406939925,0.0008,3748.6,3747.4,0.2254]
[1641406939926,0.00397897,3748.5,3748.2,0.54726706]
[1641406940125,0.00397897,3748.5,3748.3,0.8610875]
[1641406940325,0.0008,3748.6,3748.4,12.5856]
[1641406940728,0.00397897,3748.5,3748.4,12.5856]
[1641406942127,5.9269,3751.7,3748.5,7.3]
[1641406942327,0.66672,3750.9,3748.6,3.44312497]
[1641406942527,0.00113684,3748.7,3748.6,7.10522497]
[1641406942788,0.66667,3750.8,3748.6,8.9974]
[1641406942991,0.66667,3750.8,3748.7,2.95234645]
[1641406943188,0.65449988,3750.7,3750.6,1.81454175]
[1641406943388,0.65449988,3750.7,3750.0,3.62908349]
[1641406943389,5.95,3750.6,3750.0,3.62908349]
[1641406943591,0.65449988,3750.7,3750.0,3.62908349]
[1641406943790,0.01136847,3750.5,3750.0,3.62908349]
[1641406943993,0.66674,3750.4,3750.0,3.62908349]
[1641406944194,0.67754004,3750.4,3750.0,3.62908349]
[1641406944393,0.01023162,3750.3,3750.0,3.62908349]
[1641406944593,0.01023162,3750.3,3749.9,3.62908349]
[1641406944794,0.0096632,3750.2,3749.9,3.62908349]
[1641406945094,0.00909477,3750.1,3749.9,3.62908349]
[1641406945297,0.00909477,3750.1,3749.9,3.60514765]
[1641406945496,0.00852635,3750.0,3749.9,3.60514765]
[1641406945695,0.00852635,3750.0,3749.9,3.02413203]
[1641406945896,0.01136847,3750.0,3749.9,3.02413203]
[1641406946821,0.01136847,3750.0,3749.1,0.01231635]
[1641406946822,0.57803847,3750.4,3749.3,4.53635437]
[1641406947022,0.57803847,3750.4,3749.9,0.00341054]
[1641406947222,0.57803847,3750.4,3749.4,5.34045266]
[1641406947423,0.87803847,3750.4,3749.5,0.00568424]
[1641406947625,0.319,3750.3,3749.5,0.00568424]
[1641406947823,7.3,3750.2,3749.4,5.3342]
[1641406948023,0.66691,3749.7,3749.4,5.3342]
[1641406948223,1.333839,3749.6,3749.4,5.3342]
[1641406949123,2.000749,3749.6,3749.4,5.3342]
[1641406949524,7.619,3749.5,3749.4,5.3342]
[1641406949726,0.6670125,3749.1,3748.7,4.53635437]
[1641406949926,0.66702,3748.9,3748.7,4.53635437]
[1641406950215,0.66702,3748.9,3748.1,6.32087249]
[1641406950216,0.66702,3748.9,3748.8,0.00397896]
[1641406950401,0.66702,3748.9,3748.1,0.2724]
[1641406950402,7.3,3748.8,3748.1,0.2724]
[1641406950602,1.0,3748.7,3748.2,0.00341054]
[1641406951002,1.0,3748.7,3748.1,4.53976491]
[1641406951003,7.3,3748.6,3748.1,4.53976491]
[1641406951205,7.3,3748.6,3747.8,4.08240341]
[1641406951206,7.3,3748.4,3747.8,4.08240341]
[1641406951407,2.0019,3748.1,3747.1,3.8274]
[1641406951603,3.20087276,3747.2,3747.1,3.8274]
[1641406951805,3.20087276,3747.2,3747.1,5.3374]
[1641406951808,0.55087276,3747.2,3747.1,5.3374]
[1641406952004,0.55087276,3747.2,3747.1,5.34365266]
[1641406952203,0.42727486,3747.2,3747.1,5.34365266]
[1641406952602,3.97405864,3747.2,3747.1,5.34365266]
[1641406952805,9.39138864,3747.2,3747.1,0.00432266]
[1641406953104,9.39138864,3747.2,3746.7,0.00659635]
[1641406953303,1.3348974,3747.0,3746.7,0.00659635]
[1641406953505,0.319,3746.9,3746.2,0.00943847]
[1641406953711,0.66756,3746.7,3746.2,0.00943847]
[1641406953942,0.66756,3746.7,3746.1,1.81589782]
[1641406953943,8.19888742,3746.2,3746.1,1.81589782]
[1641406954137,0.89888742,3746.2,3746.1,1.81589782]
[1641406954340,7.3,3746.1,3745.8,3.9979]
[1641406954540,1.33523,3745.9,3745.1,0.01244749]
[1641406954741,1.33523,3745.9,3745.5,2.72445089]
[1641406954940,0.66762,3745.6,3745.5,2.72445089]
[1641406955141,0.66762,3745.6,3745.1,2.72445089]
[1641406955541,0.64955558,3745.5,3745.2,0.00568424]
[1641406955740,0.66762,3745.6,3745.2,0.00568424]
[1641406955942,1.33514,3745.7,3745.2,0.00568424]
[1641406956141,0.66753,3745.9,3745.2,0.00568424]
[1641406956342,1.33516,3745.7,3745.2,0.00568424]
[1641406956743,1.33516,3745.7,3745.5,0.60805986]
[1641406956944,0.00227369,3746.6,3745.5,0.60805986]
[1641406957146,0.66961369,3746.6,3745.6,0.00341054]
[1641406957343,0.00170527,3746.5,3745.6,0.00341054]
[1641406957542,1.33471,3747.3,3745.6,0.00341054]
[1641406957543,1.0,3748.0,3746.4,0.0125208]
[1641406957779,3.29566719,3748.1,3747.5,0.01281529]
[1641406957981,3.29566719,3748.1,3747.6,5.3367]
[1641406958381,0.55527771,3747.7,3747.6,5.3367]
[1641406959586,4.55527771,3747.7,3747.6,5.3367]
[1641406959787,8.52123887,3747.7,3747.6,5.3367]
[1641406959990,8.84023887,3747.7,3747.6,5.3367]
[1641406960187,6.17427771,3747.7,3747.6,5.3367]
[1641406960588,9.47427771,3747.7,3747.6,5.3367]
[1641406960790,9.47427771,3747.7,3745.2,5.65339393]
[1641406960791,0.6673755,3747.0,3745.2,0.01289393]
[1641406961194,0.00227369,3746.9,3745.3,0.00682108]
[1641406961435,0.00227369,3746.9,3745.7,5.3386]
[1641406961627,0.00170527,3746.8,3745.7,5.3386]
[1641406961831,0.56218757,3745.9,3745.8,0.00397897]
[1641406962028,0.56218757,3745.9,3745.8,5.34327897]
[1641406963730,0.6674414,3746.6,3745.8,5.34327897]
[1641406963932,0.00113685,3746.7,3745.8,5.34327897]
[1641406964132,0.00113685,3746.7,3745.9,0.00341054]
[1641406964133,0.6674,3746.6,3745.9,0.00341054]
[1641406964337,0.00113685,3746.7,3745.9,0.00341054]
[1641406964735,0.54196486,3746.6,3746.3,1.04029668]
[1641406965183,0.54196486,3746.6,3745.9,0.00341054]
[1641406965382,1.20936486,3746.6,3745.9,0.00341054]
[1641406967086,1.20936486,3746.6,3746.0,0.86916347]
[1641406967582,1.20936486,3746.6,3746.1,0.0022737]
[1641406967783,0.54196486,3746.6,3746.1,0.0022737]
[1641406971825,1.20931486,3746.6,3746.1,0.0022737]
[1641406972025,1.3348855,3746.4,3745.9,0.00341054]
[1641406972226,1.2348855,3746.4,3745.9,0.00341054]
[1641406972681,2.23230499,3746.4,3745.9,0.00341054]
[1641406973674,1.3350051,3746.2,3745.9,0.00341054]
[1641406973877,0.66753,3746.1,3745.9,0.00341054]
[1641406974081,0.66753,3746.1,3746.0,5.339]
[1641406974476,5.91753,3746.1,3746.0,5.34184212]
[1641406974778,5.91753,3746.1,3746.0,7.26010456]
[1641406974978,0.66753,3746.1,3746.0,7.26010456]
[1641406975576,2.0026886,3746.1,3746.0,7.26010456]
[1641406976442,6.1026886,3746.1,3746.0,7.26010456]
[1641406977846,6.4216886,3746.1,3746.0,7.26010456]
[1641406978045,7.7216886,3746.1,3746.0,7.26010456]
[1641406979546,3.6216886,3746.1,3746.0,7.26010456]
[1641406980579,2.3216886,3746.1,3746.0,7.26010456]
[1641406980775,0.6674234,3746.4,3746.0,7.26010456]
[1641406981179,0.6674234,3746.4,3746.1,0.0022737]
[1641406981985,1.31489656,3746.4,3746.1,3.28289083]
[1641406982384,1.31489656,3746.4,3746.2,0.00170527]
[1641406982385,9.93059576,3746.3,3746.2,0.00170527]
[1641406982585,9.93059576,3746.3,3746.1,1.91826244]
[1641406982586,7.3,3746.2,3746.1,1.91826244]
[1641406982781,9.254475,3746.2,3746.0,5.339]
[1641406982981,8.3,3746.1,3746.0,5.339]
[1641406983182,7.3,3746.0,3745.6,1.76282441]
[1641406983381,1.09990886,3745.9,3745.6,1.76282441]
[1641406983582,1.27665591,3745.8,3744.9,1.76282441]
[1641406983786,0.6678285,3745.4,3744.9,1.76282441]
[1641406984029,0.6678285,3745.4,3744.3,3.63357456]
[1641406984030,0.319,3745.3,3744.3,3.63357456]
[1641406984229,0.319,3745.3,3744.2,1.46822441]
[1641406984426,0.319,3745.3,3744.0,2.5562026]
[1641406984427,7.3,3745.2,3744.0,2.5562026]
[1641406984627,1.01479779,3744.5,3744.0,2.5562026]
[1641406984827,0.66797,3744.2,3744.0,2.5562026]
[1641406985029,0.96797,3744.2,3744.0,2.5562026]
[1641406985427,0.96797,3744.2,3743.6,2.72445089]
[1641406985832,0.96797,3744.2,3743.7,0.00397897]
[1641406986233,0.668019,3744.0,3743.7,0.00397897]
[1641406986434,0.668019,3744.0,3743.1,3.9693]
[1641406986435,0.6681,3743.8,3743.6,0.00454739]
[1641406986633,10.16477308,3743.7,3743.6,0.00454739]
[1641406986833,10.16477308,3743.7,3742.7,0.01273428]
[1641406986834,7.3,3743.6,3743.5,0.33434739]
[1641406987034,7.3,3743.6,3742.4,3.7006]
[1641406987035,1.3362724,3743.5,3742.4,3.7006]
[1641406987235,0.319,3743.4,3741.6,7.03906952]
[1641406987436,0.319,3743.4,3741.7,3.9982]
[1641406987437,7.3,3743.2,3741.7,3.9982]
[1641406987670,0.6682234,3742.9,3741.7,3.9982]
[1641406987878,1.03928209,3742.6,3742.4,0.00397896]
[1641406988074,1.33928209,3742.6,3742.4,0.00397896]
[1641406988274,1.33928209,3742.6,3742.3,6.12397896]
[1641406988275,6.0,3742.5,3742.3,6.12397896]
[1641406988476,1.33928209,3742.6,3742.3,6.12397896]
[1641406988675,0.55667144,3742.5,3742.3,6.12397896]
[1641406988876,0.55667144,3742.5,3742.3,4.92097896]
[1641406989375,1.65547,3742.8,3742.3,6.17]
[1641406989578,0.6681156,3742.9,3742.3,6.17]
[1641406989777,0.00170527,3742.7,3742.3,6.17]
[1641406989976,0.00227369,3742.8,3742.3,6.17]
[1641406990177,0.6681156,3742.9,3741.7,3.9982]
[1641406990178,0.00113684,3742.6,3741.7,3.9982]
[1641406990381,0.60182828,3742.7,3742.5,0.89205015]
[1641406990577,0.60182828,3742.7,3741.7,3.9982]
[1641406990578,0.60012301,3742.7,3741.8,0.00341054]
[1641406990778,0.6682336,3742.3,3741.8,0.00341054]
[1641406991421,0.6682336,3742.3,3741.6,0.00454739]
[1641406992122,0.6682336,3742.3,3741.5,0.00511581]
[1641406992329,0.6682588,3742.0,3741.5,0.00511581]
[1641406992625,1.33760404,3742.6,3741.5,0.00511581]
[1641406992626,0.96822,3742.2,3741.5,0.00511581]
[1641406992827,0.63716965,3742.1,3741.5,0.00511581]
[1641406993727,0.00113684,3742.6,3741.6,0.01284363]
[1641406994130,0.00113684,3742.6,3741.7,0.00397897]
[1641406994627,0.00113684,3742.6,3741.8,5.3445]
[1641406994826,0.00113684,3742.6,3742.2,0.95499809]
[1641406996072,0.00113684,3742.6,3741.9,3.61414212]
[1641406996475,0.00113684,3742.6,3742.0,0.0022737]
[1641406996877,0.50199254,3742.2,3742.0,0.0022737]
[1641406997079,0.50199254,3742.2,3742.1,5.3446]
[1641406997477,0.50199254,3742.2,3742.1,5.34630527]
[1641406997877,1.33741574,3742.6,3742.1,5.34630527]
[1641406998283,1.3364567,3742.5,3742.2,0.00113685]
[1641406998679,2.3364567,3742.5,3742.2,0.00113685]
[1641406998927,2.3364567,3742.5,3742.1,5.3446]
[1641406998928,7.3,3742.3,3742.1,5.3446]
[1641406999129,7.96837,3742.2,3742.1,5.3446]
[1641406999328,2.13797601,3742.2,3742.1,5.3446]
[1641406999526,1.30845232,3741.0,3740.7,3.9374]
[1641406999929,0.6684193,3741.0,3740.8,0.00795793]
[1641407000128,0.66837,3741.4,3740.8,0.00795793]
[1641407000331,1.13797601,3742.2,3740.3,0.01080005]
[1641407000527,1.13797601,3742.2,3741.0,0.75254533]
[1641407000729,1.3367,3741.8,3741.0,0.75254533]
[1641407000932,0.60280654,3741.2,3741.1,0.00625266]
[1641407001632,1.3367,3741.8,3740.6,0.00909478]
[1641407001834,0.6683,3741.7,3740.6,0.00909478]
[1641407002037,0.6683,3741.7,3741.1,0.80158364]
[1641407002235,1.13797601,3742.2,3741.1,0.80158364]
[1641407002436,1.13797601,3742.2,3741.2,0.00568423]
[1641407002677,0.57322861,3741.8,3741.2,0.00568423]
[1641407003376,1.13797601,3742.2,3741.2,0.00568423]
[1641407003784,0.66826,3742.1,3741.2,0.00568423]
[1641407003982,0.96824,3742.0,3741.2,0.00568423]
[1641407004184,1.3367,3741.9,3741.2,0.00568423]
[1641407004482,0.58793089,3741.4,3741.2,0.00568423]
[1641407004683,1.25629089,3741.4,3741.2,0.00568423]
[1641407005085,1.55629089,3741.4,3740.3,0.01080005]
[1641407005485,0.75867926,3741.1,3740.3,0.01080005]
[1641407005683,0.75867926,3741.1,3740.4,0.0394]
[1641407005684,3.55451512,3741.0,3740.4,0.0394]
[1641407005885,2.72310062,3741.0,3740.4,0.0394]
[1641407006087,0.3,3741.0,3740.5,0.0096632]
[1641407006531,1.05867926,3741.1,3740.5,0.0096632]
[1641407006728,1.33709,3740.6,3740.5,0.0096632]
[1641407008833,0.56230277,3740.7,3740.5,0.0096632]
[1641407009036,0.56230277,3740.7,3740.5,0.0490632]
[1641407009235,0.66934,3740.9,3740.5,0.0490632]
[1641407009236,0.0008,3740.9,3740.5,0.0490632]
[1641407009437,0.0008,3740.9,3740.6,0.00909478]
[1641407009937,0.0008,3740.9,3740.6,1.494191]
[1641407010383,0.0008,3740.9,3740.7,0.00852635]
[1641407010584,0.0008,3740.9,3740.8,1.44137654]
[1641407011187,0.32013684,3742.4,3740.8,1.44137654]
[1641407011385,0.32013684,3742.4,3740.8,4.27867226]
[1641407011386,0.00113684,3742.4,3740.8,4.27867226]
[1641407011590,0.0008,3741.2,3740.9,0.00738951]
[1641407012185,0.0008,3741.2,3741.0,0.0394]
[1641407012587,0.0008,3741.2,3741.1,12.65225266]
[1641407012786,0.0008,3741.2,3741.1,18.30045266]
[1641407012986,0.00113684,3742.4,3741.2,7.3]
[1641407013187,0.00113684,3742.4,3742.2,0.7843611]
[1641407013386,0.00113684,3742.4,3742.3,0.6832075]
[1641407013589,0.00113684,3742.4,3742.3,6.0275075]
[1641407015324,0.00113684,3742.4,3742.3,6.0669075]
[1641407017773,0.00113684,3742.4,3742.3,5.3837]
[1641407023030,0.00113684,3742.4,3742.3,5.6837]
[1641407029222,0.63188622,3742.5,3742.3,5.6837]
[1641407030727,0.63188622,3742.5,3742.4,1.49836418]
[1641407030930,0.63188622,3742.5,3742.4,6.84256418]
[1641407031129,0.63359149,3742.5,3742.4,6.84256418]
[1641407031331,0.63359149,3742.5,3742.4,6.88196418]
[1641407031730,0.00170527,3742.5,3742.4,6.88196418]
[1641407032794,0.00170527,3742.5,3742.4,7.37305237]
[1641407035597,1.98626895,3743.6,3742.4,6.88196418]
[1641407035797,0.66788,3743.5,3742.4,6.88196418]
[1641407036000,0.67356423,3743.5,3742.4,6.88196418]
[1641407036431,0.67356423,3743.5,3742.6,1.35280344]
[1641407036629,0.67356423,3743.5,3743.1,0.66934275]
[1641407036828,0.67356423,3743.5,3743.1,0.96934275]
[1641407037028,0.00568423,3743.5,3743.1,0.96934275]
[1641407037632,0.00568423,3743.5,3743.2,1.49836418]
[1641407038030,0.67361423,3743.5,3743.2,1.49836418]
[1641407038231,7.3,3743.3,3742.7,1.39220344]
[1641407038432,1.3363044,3743.1,3742.8,1.49799063]
[1641407038831,0.00284212,3743.0,3742.8,1.49799063]
[1641407039031,0.30284212,3743.0,3742.8,1.49799063]
[1641407039231,0.00227369,3742.9,3742.8,1.49799063]
[1641407040779,0.00227369,3742.9,3742.8,1.79799063]
[1641407041380,0.00227369,3742.9,3742.8,1.83739063]
[1641407046234,16.4151556,3743.8,3742.8,1.83739063]
[1641407046734,0.00454739,3743.7,3742.8,1.83739063]
[1641407046934,0.00454739,3743.7,3742.8,1.53739063]
[1641407047136,0.00397897,3743.6,3742.8,1.53739063]
[1641407047336,0.00397897,3743.6,3743.2,0.4810471]